[Event "Belt and Road Women 2024"]
[Site "Yuecheng Shaoxing"]
[Date "2024.07.24"]
[Round "1.1"]
[White "Tan, Zhongyi"]
[Black "Chen, Yining"]
[Result "1-0"]
[ECO "A11"]
[WhiteElo "2540"]
[BlackElo "2300"]
[Annotator "TA"]
[PlyCount "67"]
[EventDate "2024.08.01"]
[EventType "swiss"]
[EventCountry "CHN"]
[SourceTitle "playchess.com"]
[Source "ChessBase"]
[SourceQuality "1"]
[TimeControl "5400+30"]

{[%evp 9,67,17,14,21,21,22,19,18,22,22,22,16,20,0,13,3,10,19,27,25,20,21,36,31,56,45,49,41,43,16,27,41,27,35,31,36,24,18,14,17,16,15,22,20,341,357,367,370,366,334,408,401,464,452,460,456,624,623,608,614]} 1. Nf3 {[%emt 0:00:08]} d5 {[%emt 0:00:16]} 2. c4 {[%emt 0:00:08]} c6 {[%emt 0:00:18]} 3. g3 {[%emt 0:00:09]} Bg4 {[%emt 0:03:14]} 4. Ne5 {[%emt 0:03:07]} Bf5 {[%emt 0:00:40]} 5. Qb3 {[%emt 0:05:38]} Qb6 {[%emt 0:05:04]} 6. cxd5 {[%emt 0:04:11]} Qxb3 {[%emt 0:01:07]} 7. axb3 {[%emt 0:00:07]} Bxb1 $1 {[%emt 0:01:48]} 8. Rxb1 {[%emt 0:06:31] Bg2 would now be deadly. The position is equal.} cxd5 {[%emt 0:01:02]} 9. d4 {[%emt 0:03:11][%cal Oe2e4]} e6 {[%emt 0:04:51]} 10. e3 {[%emt 0:00:46] aiming for Bb5+.} Bd6 {[%emt 0:02:40]} 11. Nd3 {[%emt 0:04:28]} Nf6 {[%emt 0:04:18]} 12. f3 {[%emt 0:00:49]} Nc6 {[%emt 0:04:48]} 13. Bd2 {[%emt 0:00:15]} O-O {[%emt 0:09:42]} 14. Rc1 {[%emt 0:02:01]} Rfc8 {[%emt 0:02:23]} 15. b4 {[%emt 0:02:04]} Ne7 {[%emt 0:00:57]} 16. Nc5 {[%emt 0:04:41]} b6 {[%emt 0:06:31]} 17. Ba6 $1 {[%emt 0:11:56]} Rc7 {[%emt 0:04:38][%cal Oa8b8] [#]} 18. Ke2 $1 {[%emt 0:01:42]} Rb8 {[%emt 0:06:11] Wards off Nb7} (18... bxc5 19. bxc5 Bxg3 20. hxg3 $18) 19. Bd3 {[%emt 0:21:56][%cal Od2c3]} bxc5 {[%emt 0:11:02]} 20. bxc5 {[%emt 0:00:05]} Bxc5 {[%emt 0:00:05]} 21. Rxc5 {[%emt 0:00:04]} Rxc5 {[%emt 0:00:16]} 22. dxc5 {[%emt 0:00:04]} Rxb2 {[%emt 0:01:51]} 23. Ra1 $1 {[%emt 0:00:13]} Nc6 {[%emt 0:07:08]} 24. Ra6 {[%emt 0:01:36]} Ne5 {[%emt 0:02:51][%cal Oe5f3]} 25. c6 {[%emt 0:04:48] And now c7 would win.} (25. Rxa7 Kf8) 25... Ne8 {[%emt 0:02:45][%cal Oe5f3]} (25... Nxf3 $2 26. c7 (26. Rxa7 Rxd2+ 27. Kxf3 g5 $18) 26... g6 27. c8=Q+ $18 (27. c8=R+ Kg7 $18) (27. Kxf3 Rxd2 28. c8=Q+ Kg7 $18)) 26. f4 {[%emt 0:00:07]} Nc4 {[%emt 0:03:28][%mdl 8192] Loses the game.} (26... Nf3 $1 $11 {and Black is okay.} 27. Kxf3 Rxd2) 27. Bxc4 $1 $18 {[%emt 0:01:29]} dxc4 {[%emt 0:00:06]} 28. Rxa7 {[%emt 0:01:09][%mdl 4096] Endgame. KRB-KRN} Rb8 {[%emt 0:02:30] Dodges Ra8} ({Avoid the trap} 28... c3 $2 29. Ra8 Rxd2+ 30. Kf3 $18) 29. Ba5 {[%emt 0:07:21]} Kf8 {[%emt 0:07:47]} 30. Rd7 {[%emt 0:02:09]} Nf6 {[%emt 0:01:44] [#]} 31. Bb4+ $1 {[%emt 0:00:28][%mdl 512] White is clearly winning.} Kg8 {[%emt 0:02:58]} (31... Rxb4 $2 {is the wrong capture.} 32. Rd8+ (32. c7 Nxd7 33. c8=Q+ Ke7 $14) 32... Ke7 33. c7 Rb2+ 34. Kf3) 32. Rb7 {[%emt 0:00:18]} Rc8 {[%emt 0:00:38]} 33. c7 {[%emt 0:00:22]} Nd7 {[%emt 0:00:30] Dodges Rb8} 34. Bd6 {[%emt 0:00:07] Weighted Error Value: White=0.04 (flawless) /Black=0.30.  Loses game:     	---       	Black=1      Inaccurate:     	White=1     	Black=1      OK:         	White=8     	Black=13     Best:        	White=3     	Black=2      Strong:       	White=3     	Black=1} 1-0

[Event "Belt and Road Women 2024"]
[Site "Yuecheng Shaoxing"]
[Date "2024.07.24"]
[Round "1.2"]
[White "Velikic, Adela"]
[Black "Shuvalova, Polina"]
[Result "1-0"]
[ECO "C84"]
[WhiteElo "2290"]
[BlackElo "2467"]
[Annotator "TA"]
[PlyCount "107"]
[EventDate "2024.08.01"]
[EventType "swiss"]
[EventCountry "CHN"]
[SourceTitle "playchess.com"]
[Source "ChessBase"]
[SourceQuality "1"]
[TimeControl "5400+30"]

{[%evp 13,107,18,10,7,0,0,12,4,16,5,13,2,0,9,11,0,22,9,12,3,12,5,27,23,25,13,91,72,98,64,70,51,62,60,61,41,71,33,25,14,6,0,0,0,0,0,0,0,0,0,0,0,0,-17,0,0,42,14,16,0,0,0,146,145,95,123,136,135,145,143,156,73,165,122,234,218,219,211,147,63,195,202,204,182,281,205,444,287,29978,29979,29978,29979,29979,29980,29980,29977]} 1. e4 {[%emt 0:00:04]} e5 {[%emt 0:00:06]} 2. Nf3 {[%emt 0:00:05]} Nc6 {[%emt 0:00:03]} 3. Bb5 {[%emt 0:00:06]} a6 {[%emt 0:00:11]} 4. Ba4 {[%emt 0:00:06]} Nf6 {[%emt 0:00:13]} 5. O-O {[%emt 0:00:08]} Be7 {[%emt 0:00:07]} 6. d3 {[%emt 0:00:29]} b5 {[%emt 0:00:21]} 7. Bb3 {[%emt 0:00:06]} d6 {[%emt 0:00:07]} 8. Bd2 {[%emt 0:00:11]} Bg4 {[%emt 0:01:13]} 9. c3 {[%emt 0:02:03] Repels Nd4} O-O {[%emt 0:00:11]} 10. h3 {[%emt 0:00:07] The position is equal.} Bh5 {[%emt 0:00:19]} 11. Re1 {[%emt 0:01:04]} Na5 {[%emt 0:00:18]} 12. Bc2 {[%emt 0:01:03]} c5 {[%emt 0:00:06]} 13. Bc1 {[%emt 0:02:06]} Nc6 {[%emt 0:02:23]} 14. Nbd2 {[%emt 0:01:37][%cal Bb1d2,Bd2f1,Bf1g3][%mdl 32]} Qc7 {[%emt 0:01:16]} 15. Nf1 {[%emt 0:04:16]} Rad8 {[%emt 0:00:07]} 16. Ng3 {[%emt 0:10:49]} Bg6 {[%emt 0:00:05]} 17. Qe2 {[%emt 0:03:34]} Rfe8 {[%emt 0:01:55]} 18. Nh4 {[%emt 0:14:33]} d5 {[%emt 0:04:04][%cal Bd6d5,Bd5d4][%mdl 32]} 19. Nhf5 {[%emt 0:05:40]} b4 {[%emt 0:04:47]} (19... h6 $11) 20. Bg5 {[%emt 0:20:54]} h6 {[%emt 0:05:18]} 21. Nxe7+ {[%emt 0:08:05]} Qxe7 {[%emt 0:01:31]} 22. Bh4 {[%emt 0:02:21]} bxc3 {[%emt 0:16:49]} 23. bxc3 {[%emt 0:00:32]} d4 {[%emt 0:01:08]} 24. Ba4 {[%emt 0:03:24]} Qe6 {[%emt 0:06:15]} 25. c4 {[%emt 0:01:42]} (25. Nf5 {is interesting.} dxc3 26. Bb3 Qc8 27. Bxf6 gxf6 28. Nh4) 25... Rb8 {[%emt 0:00:34]} 26. Bxf6 {[%emt 0:01:23]} Qxf6 {[%emt 0:00:11]} 27. Rab1 {[%emt 0:00:59][%cal Oh3h4]} Rec8 {[%emt 0:02:36]} 28. Bxc6 {[%emt 0:02:35]} Qxc6 {[%emt 0:00:12]} 29. Rb2 {[%emt 0:02:04]} Rb4 {[%emt 0:03:42]} 30. Reb1 {[%emt 0:04:01]} Rcb8 {[%emt 0:02:29]} 31. h4 {[%emt 0:02:44][%cal Bh3h4,Bh4h5][%mdl 32]} f6 {[%emt 0:19:33]} 32. Rxb4 {[%emt 0:03:46]} Rxb4 {[%emt 0:01:11]} 33. Rf1 {[%emt 0:00:57]} Qb7 {[%emt 0:04:58]} 34. Qg4 {[%emt 0:00:44]} Kh7 {[%emt 0:03:06]} 35. h5 {[%emt 0:01:28]} Be8 {[%emt 0:00:04]} 36. Qf5+ {[%emt 0:01:05]} Kg8 {[%emt 0:05:33]} 37. f4 {[%emt 0:00:52]} Qd7 {[%emt 0:01:39]} (37... exf4 $11 {remains equal.} 38. Qxf4 Rb1) 38. fxe5 $16 {[%emt 0:00:12] e6 is the strong threat.} Qxf5 {[%emt 0:00:05]} 39. Rxf5 {[%emt 0:00:16][%mdl 4096] Endgame. KRB-KRN} Bd7 {[%emt 0:00:04]} 40. e6 $1 {[%emt 0:00:32]} Bxe6 {[%emt 0:00:04]} 41. Rxc5 {[%emt 0:00:10]} Ra4 {[%emt 0:00:04]} 42. Rc6 {[%emt 0:00:49]} (42. Ne2 $142) 42... Kf7 {[%emt 0:00:04]} (42... Bg4 $16) 43. Rc7+ $18 {[%emt 0:00:33]} Kf8 {[%emt 0:00:12]} (43... Kg8 $16) 44. Ne2 {[%emt 0:00:46]} Rxa2 {[%emt 0:01:14]} 45. Nxd4 {[%emt 0:00:03]} Bg4 {[%emt 0:00:11][%cal Oa2a3] [#]} 46. Nc6 {[%emt 0:01:39] White is more active.} (46. Kh2 $1 $16 {[%cal Rh2g3] Kg3 would now be deadly.} Ra3 47. Kg3 Rxd3+ 48. Kxg4 Rxd4 49. Kf5) 46... a5 {[%emt 0:04:28] [#] This costs Black the game.} ({Black should play} 46... Rc2 $14) 47. d4 $1 {[%emt 0:00:28][%cal Bd3d4,Bd4d5][%mdl 32]} a4 {[%emt 0:00:07][%cal Oa2c2]} 48. Ra7 {[%emt 0:00:22]} a3 {[%emt 0:00:17]} (48... Re2 $142 49. Ra8+ (49. Rxa4 Rxe4 50. d5 Bxh5 $18) 49... Kf7 50. Rxa4 Rxe4) 49. e5 {[%emt 0:00:40]} Rc2 $2 {[%emt 0:02:12]} (49... Bf5 {was called for.} 50. d5 fxe5) 50. d5 {[%emt 0:00:33]} (50. Rxa3 Bxh5 51. Ra8+ Be8 $14) 50... a2 $2 {[%emt 0:01:53]} (50... Bxh5 $18 51. e6 (51. Rxa3 Rxc4 52. Ra8+ Be8 $18) 51... Be8) 51. Ra8+ {[%emt 0:00:25] White mates.} Kf7 {[%emt 0:00:18]} 52. e6+ {[%emt 0:00:06]} Bxe6 {[%emt 0:00:05]} 53. dxe6+ {[%emt 0:00:04]} Kxe6 {[%emt 0:00:03]} 54. Nd4+ {[%emt 0:00:04] Weighted Error Value: White=0.18 (very precise) /Black=0.45.  Mistake:       	White=2     	Black=8      Inaccurate:     	White=4     	Black=2      OK:         	White=15    	Black=21     Best:        	White=3     	Black=1      Strong:       	White=2     	---} 1-0

[Event "Belt and Road Women 2024"]
[Site "Yuecheng Shaoxing"]
[Date "2024.07.24"]
[Round "1.3"]
[White "Wagner, Dinara"]
[Black "Wang, Chuqiao"]
[Result "1-0"]
[ECO "E11"]
[WhiteElo "2454"]
[BlackElo "2278"]
[Annotator "RC"]
[PlyCount "89"]
[EventDate "2024.08.01"]
[EventType "swiss"]
[EventCountry "CHN"]
[SourceTitle "playchess.com"]
[Source "ChessBase"]
[SourceQuality "1"]
[TimeControl "5400+30"]

1. Nf3 {[%emt 0:00:04]} d5 {[%emt 0:01:36]} 2. c4 {[%emt 0:01:22]} c6 {[%emt 0:00:42]} 3. d4 {[%emt 0:00:24]} Nf6 {[%emt 0:00:21]} 4. g3 {[%emt 0:01:10]} e6 {[%emt 0:05:21]} 5. Bg2 {[%emt 0:00:51]} Bb4+ {[%emt 0:00:25]} 6. Bd2 {[%emt 0:01:34]} Be7 {[%emt 0:00:19]} 7. O-O {[%emt 0:00:12]} O-O {[%emt 0:02:01]} 8. Qc2 {[%emt 0:00:06]} b6 {[%emt 0:00:14]} 9. Ne5 {[%emt 0:03:47]} Bb7 {[%emt 0:01:32]} 10. Nc3 {[%emt 0:00:05]} Nbd7 {[%emt 0:02:06]} 11. e4 {[%emt 0:00:26]} dxe4 {[%emt 0:11:12]} 12. Nxe4 {[%emt 0:01:27]} Qc8 {[%emt 0:01:51]} 13. Nxf6+ {[%emt 0:21:26]} Nxf6 {[%emt 0:09:50]} 14. c5 {[%emt 0:00:36]} Nd5 {[%emt 0:03:48]} 15. Rfe1 {[%emt 0:06:36]} Bf6 {[%emt 0:07:49]} 16. Rac1 {[%emt 0:07:20]} Qc7 {[%emt 0:05:14]} 17. Qe4 {[%emt 0:11:35]} Rad8 {[%emt 0:06:13]} 18. h4 {[%emt 0:04:41]} Ne7 {[%emt 0:03:04]} 19. Bf4 {[%emt 0:01:58]} Qc8 {[%emt 0:01:56]} 20. Bg5 {[%emt 0:08:07]} Bxg5 {[%emt 0:04:44]} 21. hxg5 {[%emt 0:00:02]} Nf5 {[%emt 0:01:43]} 22. Red1 {[%emt 0:00:08]} bxc5 {[%emt 0:02:55]} 23. dxc5 {[%emt 0:07:16]} Rxd1+ {[%emt 0:11:16]} 24. Rxd1 {[%emt 0:00:05]} Rd8 {[%emt 0:00:19]} 25. Qa4 {[%emt 0:01:54]} Rxd1+ {[%emt 0:04:09]} 26. Qxd1 {[%emt 0:00:03]} g6 {[%emt 0:06:37]} 27. Nd7 {[%emt 0:08:23]} h5 {[%emt 0:03:13]} 28. Be4 {[%emt 0:01:22]} Ne7 {[%emt 0:01:53]} 29. Nf6+ {[%emt 0:02:45]} Kf8 {[%emt 0:00:46]} 30. Qd6 {[%emt 0:00:04]} Ba6 {[%emt 0:00:27]} 31. b3 {[%emt 0:03:30]} Bb7 {[%emt 0:00:48]} 32. Bd3 {[%emt 0:02:49]} a5 {[%emt 0:00:27]} 33. a4 {[%emt 0:00:47]} Qa8 {[%emt 0:01:07]} 34. Bc4 {[%emt 0:01:20]} Qc8 {[%emt 0:00:13]} 35. Bd3 {[%emt 0:00:11]} Qa8 {[%emt 0:00:14]} 36. Kg2 {[%emt 0:00:05]} Qc8 {[%emt 0:00:10]} 37. Kf3 {[%emt 0:00:03]} Qa8 {[%emt 0:00:27]} 38. Ke3 {[%emt 0:00:05]} Qc8 {[%emt 0:00:07]} 39. Kd2 {[%emt 0:00:04]} Qa8 {[%emt 0:00:19]} 40. Be4 {[%emt 0:01:45]} Qc8 {[%emt 0:00:16]} 41. Nd7+ {[%emt 0:01:36]} Ke8 {[%emt 0:00:24]} 42. Nb6 {[%emt 0:01:09]} Qd8 {[%emt 0:00:05]} 43. Nc4 {[%emt 0:00:31]} Ba6 {[%emt 0:02:19]} 44. Qxd8+ {[%emt 0:00:21]} Kxd8 {[%emt 0:00:04]} 45. Nd6 {[%emt 0:00:14]} 1-0

[Event "Belt and Road Women 2024"]
[Site "Yuecheng Shaoxing"]
[Date "2024.07.24"]
[Round "1.4"]
[White "Soumya, Swaminathan"]
[Black "Garifullina, Leya"]
[Result "0-1"]
[ECO "C77"]
[WhiteElo "2258"]
[BlackElo "2458"]
[Annotator "TA"]
[PlyCount "84"]
[EventDate "2024.08.01"]
[EventType "swiss"]
[EventCountry "CHN"]
[SourceTitle "playchess.com"]
[Source "ChessBase"]
[SourceQuality "1"]
[TimeControl "5400+30"]

{[%evp 12,84,10,12,18,10,19,16,14,8,9,16,22,23,14,8,35,18,25,0,2,-22,-31,-23,-25,-19,-49,-25,-55,-56,-41,-33,0,-66,-79,-73,-82,-67,-72,-77,-81,-206,-174,-205,-204,-201,-189,-700,-716,-562,-372,-360,-362,-346,-351,-385,-410,-577,-391,-484,-448,-431,-427,-516,-533,-1267,-1177,-2231,-2156,-4133,-2800,-2847,-2578,-29981,-29982]} 1. e4 {[%emt 0:00:27]} e5 {[%emt 0:00:22]} 2. Nf3 {[%emt 0:00:06]} Nc6 {[%emt 0:00:06]} 3. Bb5 {[%emt 0:00:11]} a6 {[%emt 0:00:07]} 4. Ba4 {[%emt 0:00:03]} Nf6 {[%emt 0:00:07]} 5. d3 {[%emt 0:00:06]} Bc5 {[%emt 0:01:27]} 6. c3 {[%emt 0:00:24]} b5 {[%emt 0:06:35]} 7. Bc2 {[%emt 0:00:22]} d6 {[%emt 0:00:16]} 8. O-O {[%emt 0:03:25]} O-O {[%emt 0:02:15]} 9. h3 {[%emt 0:05:31]} Bb6 {[%emt 0:01:39] The position is equal.} 10. Re1 {[%emt 0:07:55]} h6 {[%emt 0:07:28]} 11. Nbd2 {[%emt 0:08:51]} Ne7 {[%emt 0:06:39]} 12. d4 {[%emt 0:13:05]} Ng6 {[%emt 0:00:35]} 13. Nf1 {[%emt 0:00:16]} Re8 {[%emt 0:04:47]} 14. Ng3 {[%emt 0:05:27]} Bd7 {[%emt 0:06:47]} 15. Be3 {[%emt 0:07:44]} c5 {[%emt 0:04:26]} 16. Qd2 {[%emt 0:05:38]} exd4 {[%emt 0:08:35]} 17. Bxh6 {[%emt 0:04:32]} gxh6 {[%emt 0:01:02]} 18. Qxh6 {[%emt 0:02:45][%cal Oe4e5] e5! would now be deadly.} Qe7 {[%emt 0:07:19] Threatens to win with ...Qf8.} 19. e5 $1 {[%emt 0:02:00]} dxe5 {[%emt 0:01:54]} 20. Nxe5 {[%emt 0:00:57]} Qf8 {[%emt 0:04:58]} (20... Nxe5 21. Nh5 (21. Qg5+ Ng6 $18) (21. Qg5+ Ng6 $18)) 21. Qg5 {[%emt 0:00:48]} Qg7 {[%emt 0:05:16]} 22. Nh5 {[%emt 0:17:54]} (22. Nxd7 $11 Nxd7 23. Nh5) 22... Nxh5 $15 {[%emt 0:00:07]} 23. Nxd7 {[%emt 0:00:10]} Ngf4 {[%emt 0:08:56]} 24. Qxg7+ {[%emt 0:00:54]} Kxg7 {[%emt 0:00:04]} 25. Nxb6 {[%emt 0:00:18] [#]} d3 $1 {[%emt 0:01:36] Strongly threatening ...Rxe1+.} 26. Bb3 {[%emt 0:04:28] [#] Loses the game.} (26. Nxa8 $17 Rxe1+ 27. Rxe1 dxc2 28. Nc7) 26... Ne2+ $1 $19 {[%emt 0:02:01][%mdl 1024] Black has strong compensation.} (26... d2 27. Rxe8 Rxe8 28. Rd1 Re1+ 29. Kh2) 27. Kf1 {[%emt 0:01:37]} Rad8 {[%emt 0:01:23]} 28. c4 {[%emt 0:01:14]} Rd4 $36 {[%emt 0:03:26][%mdl 2048] Black has strong initiative.} 29. g4 $2 {[%emt 0:04:13]} (29. Bd1 Re6 (29... bxc4 30. Bxe2 dxe2+ 31. Rxe2 $16) 30. Bxe2 dxe2+ 31. Rxe2 Rxb6 32. cxb5) 29... Nhf4 {[%emt 0:01:14]} 30. Nd5 {[%emt 0:03:31]} Nxd5 {[%emt 0:01:09]} 31. cxd5 {[%emt 0:00:03]} Rh8 {[%emt 0:00:09]} (31... c4 $2 32. Bd1 Rde4 (32... Rxd5 33. Bxe2 dxe2+ 34. Rxe2 $14) 33. Bxe2 dxe2+ (33... Rxe2 34. Rxe2 Rxe2 35. Re1 $11) 34. Kg2 $19) 32. Bd1 {[%emt 0:00:41]} Nf4 {[%emt 0:00:05]} (32... Rxd5 33. Bxe2 dxe2+ 34. Rxe2 $15) 33. Re3 {[%emt 0:00:42]} Nxd5 {[%emt 0:00:05]} (33... Rxd5 34. a4 $19) 34. Rg3 {[%emt 0:00:35]} (34. Rf3 $142) 34... Nf4 {[%emt 0:00:13][%cal Od3d2]} 35. a4 {[%emt 0:00:31]} c4 {[%emt 0:00:33] aiming for ...b4.} ({Much less strong is} 35... Rxh3 36. Rxh3 Nxh3 37. axb5 axb5 38. Ke1 $19) 36. axb5 {[%emt 0:00:16]} axb5 {[%emt 0:00:13][%cal Ob5b4]} (36... Nxh3 37. bxa6 Ng5 38. Re3 $16 (38. a7 Ra8 $16)) 37. Ra5 {[%emt 0:00:14]} b4 {[%emt 0:00:08][%cal Oc4c3] Hoping for ...c3!} ({Not} 37... Rxh3 38. Rxh3 Nxh3 39. Rxb5 $17) 38. Rg5+ {[%emt 0:01:02]} Kh6 {[%emt 0:00:17]} 39. Ra5 {[%emt 0:00:31]} c3 {[%emt 0:02:27]} 40. bxc3 {[%emt 0:00:07]} bxc3 {[%emt 0:00:03]} 41. g5+ {[%emt 0:00:52]} Kg7 {[%emt 0:00:07][%cal Oc3c2] ( -> ...c2!)} 42. Rc5 {[%emt 0:00:32]} c2 {[%emt 0:00:16] Weighted Error Value: White=0.90/Black=0.18 (very precise) .  Mistake:       	White=4     	---        Inaccurate:     	White=2     	Black=3      OK:         	White=9     	Black=12     Best:        	---       	Black=6      Strong:       	White=1     	Black=2} 0-1

[Event "Belt and Road Women 2024"]
[Site "Yuecheng Shaoxing"]
[Date "2024.07.24"]
[Round "1.5"]
[White "Lu, Miaoyi"]
[Black "Wang, Yu A."]
[Result "1/2-1/2"]
[ECO "E14"]
[WhiteElo "2449"]
[BlackElo "2234"]
[Annotator "RC"]
[PlyCount "119"]
[EventDate "2024.08.01"]
[EventType "swiss"]
[EventCountry "CHN"]
[SourceTitle "playchess.com"]
[Source "ChessBase"]
[SourceQuality "1"]
[TimeControl "5400+30"]

1. d4 {[%emt 0:00:01]} Nf6 {[%emt 0:00:10]} 2. c4 {[%emt 0:00:02]} e6 {[%emt 0:00:10]} 3. Nf3 {[%emt 0:00:03]} Bb4+ {[%emt 0:00:18]} 4. Nbd2 {[%emt 0:00:03]} b6 {[%emt 0:02:14]} 5. a3 {[%emt 0:00:05]} Bxd2+ {[%emt 0:00:50]} 6. Qxd2 {[%emt 0:02:25]} Bb7 {[%emt 0:00:47]} 7. e3 {[%emt 0:00:43]} O-O {[%emt 0:01:06]} 8. Be2 {[%emt 0:00:34]} d5 {[%emt 0:00:30]} 9. b3 {[%emt 0:01:18]} c5 {[%emt 0:07:20]} 10. dxc5 {[%emt 0:20:22]} Ne4 {[%emt 0:12:00]} 11. Qc2 {[%emt 0:00:13]} dxc4 {[%emt 0:02:57]} 12. Bxc4 {[%emt 0:13:06]} Nxc5 {[%emt 0:14:46]} 13. Bb2 {[%emt 0:00:40]} Nbd7 {[%emt 0:05:33]} 14. Rd1 {[%emt 0:04:14]} Qe7 {[%emt 0:03:56]} 15. h4 {[%emt 0:19:38]} Be4 {[%emt 0:10:20]} 16. Qc3 {[%emt 0:01:18]} Nf6 {[%emt 0:00:38]} 17. Ng5 {[%emt 0:09:37]} Rac8 {[%emt 0:04:34]} 18. Qe5 {[%emt 0:06:40]} Bc2 {[%emt 0:08:34]} 19. Rd6 {[%emt 0:13:14]} Rfd8 {[%emt 0:07:43]} 20. Rxd8+ {[%emt 0:01:27]} Rxd8 {[%emt 0:00:48]} 21. O-O {[%emt 0:02:38]} Bxb3 {[%emt 0:03:09]} 22. Bxb3 {[%emt 0:00:02]} Nxb3 {[%emt 0:00:03]} 23. Ne4 {[%emt 0:02:02]} Ne8 {[%emt 0:02:23]} 24. h5 {[%emt 0:00:44]} h6 {[%emt 0:01:07]} 25. a4 {[%emt 0:00:52]} Qc7 {[%emt 0:04:43]} 26. Qxc7 {[%emt 0:00:49]} Nxc7 {[%emt 0:00:02]} 27. Be5 {[%emt 0:00:10]} Nd5 {[%emt 0:00:55]} 28. Rb1 {[%emt 0:00:30]} Nc5 {[%emt 0:02:14]} 29. Nxc5 {[%emt 0:00:11]} bxc5 {[%emt 0:00:01]} 30. Rc1 {[%emt 0:01:02]} Rc8 {[%emt 0:00:32]} 31. Bd4 {[%emt 0:00:19]} c4 {[%emt 0:00:08]} 32. Bxa7 {[%emt 0:00:24]} Ra8 {[%emt 0:01:04]} 33. Bd4 {[%emt 0:00:19]} Rxa4 {[%emt 0:00:06]} 34. Kf1 {[%emt 0:00:15]} f6 {[%emt 0:00:42]} 35. f4 {[%emt 0:00:37]} c3 {[%emt 0:02:20]} 36. g3 {[%emt 0:01:07]} e5 {[%emt 0:01:52]} 37. fxe5 {[%emt 0:00:35]} fxe5 {[%emt 0:00:01]} 38. Bxe5 {[%emt 0:00:26]} Nxe3+ {[%emt 0:00:28]} 39. Ke2 {[%emt 0:00:21]} Nd5 {[%emt 0:00:47]} 40. Bxc3 {[%emt 0:00:23]} Rc4 {[%emt 0:00:54]} 41. Bd2 {[%emt 0:00:37]} Rxc1 {[%emt 0:00:04]} 42. Bxc1 {[%emt 0:00:08]} Nf6 {[%emt 0:00:06]} 43. Kf3 {[%emt 0:00:02]} Nxh5 {[%emt 0:00:07]} 44. g4 {[%emt 0:00:06]} Nf6 {[%emt 0:00:04]} 45. g5 {[%emt 0:00:06]} hxg5 {[%emt 0:00:05]} 46. Bxg5 {[%emt 0:00:03]} Kf7 {[%emt 0:00:08]} 47. Bxf6 {[%emt 0:00:51]} Kxf6 {[%emt 0:01:04]} 48. Kf4 {[%emt 0:00:02]} Kg6 {[%emt 0:00:42]} 49. Kg4 {[%emt 0:00:02]} Kh6 {[%emt 0:00:29]} 50. Kh4 {[%emt 0:00:01]} g6 {[%emt 0:00:20]} 51. Kg4 {[%emt 0:00:02]} g5 {[%emt 0:00:10]} 52. Kg3 {[%emt 0:00:02]} Kh5 {[%emt 0:00:10]} 53. Kh3 {[%emt 0:00:02]} g4+ {[%emt 0:00:06]} 54. Kg2 {[%emt 0:00:10]} Kg5 {[%emt 0:00:16]} 55. Kg3 {[%emt 0:00:10]} Kf5 {[%emt 0:00:10]} 56. Kg2 {[%emt 0:00:18]} Kf4 {[%emt 0:00:06]} 57. Kf2 {[%emt 0:00:04]} g3+ {[%emt 0:00:05]} 58. Kg2 {[%emt 0:00:05]} Kg4 {[%emt 0:00:02]} 59. Kg1 {[%emt 0:00:09]} Kf3 {[%emt 0:00:07]} 60. Kf1 {[%emt 0:00:04]} 1/2-1/2

[Event "Belt and Road Women 2024"]
[Site "Yuecheng Shaoxing"]
[Date "2024.07.24"]
[Round "1.6"]
[White "Kurmangaliyeva, Liya"]
[Black "Mammadzada, Gunay"]
[Result "1-0"]
[ECO "B90"]
[WhiteElo "2282"]
[BlackElo "2444"]
[Annotator "RC"]
[PlyCount "79"]
[EventDate "2024.08.01"]
[EventType "swiss"]
[EventCountry "CHN"]
[SourceTitle "playchess.com"]
[Source "ChessBase"]
[SourceQuality "1"]
[TimeControl "5400+30"]

1. e4 {[%emt 0:00:11]} c5 {[%emt 0:00:10]} 2. Nf3 {[%emt 0:00:17]} d6 {[%emt 0:00:03]} 3. d4 {[%emt 0:00:20]} cxd4 {[%emt 0:00:06]} 4. Nxd4 {[%emt 0:00:05]} Nf6 {[%emt 0:00:05]} 5. Nc3 {[%emt 0:00:16]} a6 {[%emt 0:00:04]} 6. h3 {[%emt 0:01:13]} e5 {[%emt 0:00:11]} 7. Nf3 {[%emt 0:02:59]} Qc7 {[%emt 0:01:46]} 8. g4 {[%emt 0:05:49]} h6 {[%emt 0:02:32]} 9. Be3 {[%emt 0:06:32]} b5 {[%emt 0:05:36]} 10. a4 {[%emt 0:04:34]} b4 {[%emt 0:01:18]} 11. Nd5 {[%emt 0:02:42]} Nxd5 {[%emt 0:00:08]} 12. exd5 {[%emt 0:00:15]} Nd7 {[%emt 0:03:06]} 13. Bg2 {[%emt 0:08:39]} Be7 {[%emt 0:09:00]} 14. Qd2 {[%emt 0:14:30]} Rb8 {[%emt 0:05:40]} 15. g5 {[%emt 0:15:08]} hxg5 {[%emt 0:11:03]} 16. Nxg5 {[%emt 0:01:42]} Nf8 {[%emt 0:10:22]} 17. h4 {[%emt 0:09:33]} f6 {[%emt 0:04:14]} 18. Nf3 {[%emt 0:02:14]} f5 {[%emt 0:06:08]} 19. Bg5 {[%emt 0:05:09]} Ng6 {[%emt 0:00:14]} 20. Bxe7 {[%emt 0:08:40]} Kxe7 {[%emt 0:10:42]} 21. Bf1 {[%emt 0:02:47]} Kf8 {[%emt 0:05:28]} 22. Rg1 {[%emt 0:04:27]} Nf4 {[%emt 0:04:03]} 23. Nd4 {[%emt 0:00:21]} Nxd5 {[%emt 0:06:06]} 24. Nxf5 {[%emt 0:02:10]} Bxf5 {[%emt 0:00:40]} 25. Qxd5 {[%emt 0:00:02]} Rxh4 {[%emt 0:06:18]} 26. Bd3 {[%emt 0:00:04]} Bxd3 {[%emt 0:00:38]} 27. Qxd3 {[%emt 0:00:03]} Rd8 {[%emt 0:03:58]} 28. O-O-O {[%emt 0:01:00]} b3 {[%emt 0:01:55]} 29. Qxb3 {[%emt 0:01:00]} Rc8 {[%emt 0:01:33]} 30. Rd3 {[%emt 0:02:12]} Rc4 {[%emt 0:01:06]} 31. Rf3+ {[%emt 0:00:14]} Ke8 {[%emt 0:00:18]} 32. c3 {[%emt 0:00:28]} Qc6 {[%emt 0:00:11]} 33. Rh3 {[%emt 0:00:24]} Kf7 {[%emt 0:01:20]} 34. Rhg3 {[%emt 0:00:52]} Qxa4 {[%emt 0:00:53]} 35. Qb7+ {[%emt 0:00:35]} R8c7 {[%emt 0:00:31]} 36. Rxg7+ {[%emt 0:00:04]} Ke6 {[%emt 0:00:03]} 37. R1g6+ {[%emt 0:00:30]} Kf5 {[%emt 0:00:01]} 38. Qf3+ {[%emt 0:00:14]} Rf4 {[%emt 0:00:02]} 39. Qh3+ {[%emt 0:00:44]} Ke4 {[%emt 0:00:03]} 40. Qg2+ {[%emt 0:00:44]} 1-0